{"text_format":"1","workbook":"xlsx","n_sheets":5,"sheets":["Base de données AFD 47","Cotisation","Adhésion","Nouvelle Abonnement EQUILIBRE","Listes"],"not_rendered":{"charts":0,"images":0,"macros":1,"external_links":0,"defined_names":0,"comments":0,"pivot_tables":0},"unopened":[],"bounds":{"document_bytes":16777216,"sheet_cells":100000,"rows_first":2000,"rows_last":500,"rows_between":2000,"halvings":0,"cell_chars":16384,"cell_head_chars":4096},"cells_cut":0,"cells_raw":0,"read":"whole","date_system":"1900"}

{"sheet":"Base de données AFD 47","index":0,"n_rows":21,"n_cols":27,"rows_kept":21,"cut":false,"hidden":false,"merged":[]}
["N° Adhérent","Civilité","NOM","Prénom","Société","Adresse 1","Adresse 2","Adresse 3","Adresse 4","CP + VILLE","Pays","TEL","TEL MOBILE","E-MAIL","DATE DE NAISSANCE","TRAITEMENT","TYPE DE DIABETE","ANNEE DE DECOUVERTE DU DIABETE","REGLEMENT DE L'ADHESION","CHANGEMENT DE SITUATION","ANNEE ADHESION REVUE EQUILIBRE","ADHERENT 2011","ADHERENT 2011","ADHERENT 2012","ADHERENT 2013","COMMENTAIRE","REGLEMENT DE L'ABONNEMENT"]
[1,"Mme","nom1","pnom1"]
[2,"M.","nom2","pnom2",null,null,null,null,null,null,null,1234567890]
[3,"Mlle","nom3","pnom3"]
[4,"Mme","nom4","pnom4"]
[5,"M.","nom5","pnom5"]
[6,"Mlle","nom6","pnom6"]
[7,"Mme","nom7","pnom7"]
[8,"M.","nom8","pnom8"]
[9,"Mlle","nom9","pnom9"]
[10,"Mme","nom10","pnom10"]
[11,"M.","nom11","pnom11"]
[12,"Mlle","nom12","pnom12",null,null,null,null,null,"20000 ajaccio"]
[13,"Mme","nom13","pnom13"]
[14,"M.","nom14","pnom14"]
[15,"Mlle","nom15","pnom15"]
[16,"Mme","nom16","pnom16"]
[17,"M.","nom17","pnom17"]
[18,"Mlle","nom18","pnom18"]
[19,"Mme","nom19","pnom19"]
[20,"M.","nom20","pnom20",null,null,null,null,null,"75000 paris"]

{"sheet":"Cotisation","index":1,"n_rows":1,"n_cols":20,"rows_kept":1,"cut":false,"hidden":false,"merged":[]}
["N° Adhérent","Civilité","NOM","Prénom","Société","Adresse 1","Adresse 2","Adresse 3","Adresse 4","CP + VILLE","Pays","TEL","TEL MOBILE","E-MAIL","DATE DE NAISSANCE","TRAITEMENT","TYPE DE DIABETE","ANNEE DE DECOUVERTE DU DIABETE","REGLEMENT DE L'ADHESION","CHANGEMENT DE SITUATION"]

{"sheet":"Adhésion","index":2,"n_rows":1,"n_cols":18,"rows_kept":1,"cut":false,"hidden":false,"merged":[]}
["Civilité","NOM","Prénom","Société","Adresse 1","Adresse 2","Adresse 3","Adresse 4","CP + VILLE","PAYS","TEL","TEL MOBILE","E-MAIL","DATE DE NAISSANCE","TRAITEMENT","TYPE DE DIABETE","ANNEE DE DECOUVERTE DU DIABETE","REGLEMENT DE L'ADHESION"]

{"sheet":"Nouvelle Abonnement EQUILIBRE","index":3,"n_rows":1,"n_cols":14,"rows_kept":1,"cut":false,"hidden":false,"merged":[]}
["Civilité","NOM","Prénom","Société","Adresse 1","Adresse 2","Adresse 3","Adresse 4","CP + VILLE","PAYS","TEL","TEL MOBILE","E-MAIL","REGLEMENT DE L'ABONNEMENT"]

{"sheet":"Listes","index":4,"n_rows":28,"n_cols":5,"rows_kept":28,"cut":false,"hidden":false,"merged":[]}
["Base de données AFD 47","Cotisation","Adhésion","Nouvelle Abonnement EQUILIBRE","Civilité"]
[{"$f":"OFFSET(INDIRECT(\"'\"&A$1&\"'!$A$1\"),,ROW()-2)","v":"N° Adhérent"},{"$f":"OFFSET(INDIRECT(\"'\"&B$1&\"'!$A$1\"),,ROW()-2)","v":"N° Adhérent"},"Civilité",{"$f":"OFFSET(INDIRECT(\"'\"&D$1&\"'!$A$1\"),,ROW()-2)","v":"Civilité"},"M."]
[{"$f":"OFFSET(INDIRECT(\"'\"&A$1&\"'!$A$1\"),,ROW()-2)","v":"Civilité"},"Civilité","NOM","NOM","Mme"]
["NOM","NOM","Prénom","Prénom","Mlle"]
["Prénom","Prénom","Société","Société"]
["Société","Société","Adresse 1","Adresse 1"]
["Adresse 1","Adresse 1","Adresse 2","Adresse 2"]
["Adresse 2","Adresse 2","Adresse 3","Adresse 3"]
["Adresse 3","Adresse 3","Adresse 4","Adresse 4"]
["Adresse 4","Adresse 4","CP + VILLE","CP + VILLE"]
["CP + VILLE","CP + VILLE","PAYS","PAYS"]
["Pays","Pays","TEL","TEL"]
["TEL","TEL","TEL MOBILE","TEL MOBILE"]
["TEL MOBILE","TEL MOBILE","E-MAIL","E-MAIL"]
["E-MAIL","E-MAIL","DATE DE NAISSANCE","REGLEMENT DE L'ABONNEMENT"]
["DATE DE NAISSANCE","DATE DE NAISSANCE","TRAITEMENT",0]
["TRAITEMENT","TRAITEMENT","TYPE DE DIABETE",0]
["TYPE DE DIABETE","TYPE DE DIABETE","ANNEE DE DECOUVERTE DU DIABETE",0]
["ANNEE DE DECOUVERTE DU DIABETE","ANNEE DE DECOUVERTE DU DIABETE","REGLEMENT DE L'ADHESION",0]
["REGLEMENT DE L'ADHESION","REGLEMENT DE L'ADHESION",0,0]
["CHANGEMENT DE SITUATION","CHANGEMENT DE SITUATION",0,0]
["ANNEE ADHESION REVUE EQUILIBRE",0,0,0]
["ADHERENT 2011",0,0,0]
["ADHERENT 2011",0,0,0]
["ADHERENT 2012",0,0,0]
["ADHERENT 2013",0,0,0]
["COMMENTAIRE",0,0,0]
["REGLEMENT DE L'ABONNEMENT",0,0,0]